Cogmind - Beta 16 @@@ ROGUE MODE // 2026.01.11 @ 16:07:50 Player: Artackni Result: Destroyed by S-43 Plague with Heavy Machine Gun Performance ------------- Evolutions (7) 3500 Regions Visited (15) 3000 Robots Destroyed (110) 550 Value Destroyed (4979) 4979 Prototype IDs (36) 720 Alien Tech Used (2) 400 Bonus (3951) 3951 TOTAL SCORE: 17100 Bonus ------- High Alert Combat Kills 785 Follower Combat Kills 2221 Registered with UFD 300 Met Optimus in HQ 500 Met Zhirov 300 Friendly Fire -155 Cogmind --------- Core Integrity 0/1300 Matter 250/300 Energy 100/100 System Corruption 13% Temperature Cool (0) Movement Core (150) Ox2 Location -3/Research Parts ------- > --- POWER (1) -------- (None) > --- PROPULSION (6) --- Improved Gyrokinetic Inverter Improved Gyrokinetic Inverter > --- UTILITY (10) ----- Improved Melee Analysis Suite Advanced Target Analyzer Core Analyzer Improved System Shield > --- WEAPON (4) ------- Enhanced Force Lance > --- INVENTORY (5) ---- Medium Storage Unit Gamma Rifle Quantum Rifle Quantum Rifle Peak State ------------ > --- POWER ------------ Micro Antimatter Reactor > --- PROPULSION ------- Improved Gyrokinetic Inverter Improved Gyrokinetic Inverter Improved Gyrokinetic Inverter Improved Gyrokinetic Inverter Antigrav Array > --- UTILITY ---------- Advanced Heat Sink Seismic Detector Advanced Target Analyzer Advanced Target Analyzer Core Analyzer Makeshift Transmission Jammer Hacking Suite Advanced Hacking Suite Improved System Shield Advanced System Shield > --- WEAPON ----------- Quantum Rifle Quantum Rifle Heavy Neutron Cannon Nova Cannon > --- INVENTORY -------- Light Antimatter Reactor Improved Gyrokinetic Inverter Improved Gyrokinetic Inverter Improved Gyrokinetic Inverter Advanced Heat Sink [Rating: 136] Favorites ----------- Power Antimatter Reactor Engine Ion Engine Power Core Micro Fission Core Reactor Antimatter Reactor Propulsion Medium Treads Treads Medium Treads Leg Advanced Myomer Leg Wheel Overtuned Huge Scrapsphere Hover Unit Improved Gyrokinetic Inverter Flight Unit Xenon Bombardment Thruster Utility Seismic Detector Device Seismic Detector Storage Large Storage Unit Processor Core Analyzer Hackware Improved System Shield Protection Experimental Propulsion Shielding Weapon Plasma Rifle Energy Gun Plasma Rifle Energy Cannon Phase Cannon Ballistic Gun Hypervelocity Gauss Rifle Ballistic Cannon Heavy Flak Cannon Launcher Grenade Launcher Special Weapon Remote Datajack Impact Weapon Heavy Flail Slashing Weapon Ripper Piercing Weapon Enhanced Force Lance Special Melee Weapon Datajack Build | -11 -10 -10 -8 -6 -6 -6 -5 -5 -5 -4 -4 -4 -4 -3 -3 ------- Run | Yrd Mat Sub Scr Fac Was Fac Fac Was Fac Fac Upp Upp Zhi Pro Res Slots Evolved 14 | . . . . 8 . . 2 . . 2 . . . . 2 Power . | . . . . . . . . . . . . . . . . Propulsion 4 | . . . . 2 . . . . . 1 . . . . 1 Utility 8 | . . . . 4 . . 2 . . 1 . . . . 1 Weapon 2 | . . . . 2 . . . . . . . . . . . Parts Attached 164 | 7 1 7 2 25 12 3 23 . 7 14 9 . 8 1 45 Power 14 | 1 . . . 3 2 . 2 . . 1 . . 1 . 4 Engine 3 | 1 . . . 2 . . . . . . . . . . . Core 2 | . . . . . . . 1 . . 1 . . . . . Reactor 9 | . . . . 1 2 . 1 . . . . . 1 . 4 Propulsion 43 | 2 . 2 1 5 2 . 6 . 1 3 4 . 3 . 14 Treads 12 | 1 . 2 . 4 2 . 2 . . . 1 . . . . Leg 3 | . . . . . . . . . . . . . 3 . . Wheel 3 | 1 . . 1 1 . . . . . . . . . . . Hover 22 | . . . . . . . 4 . 1 3 2 . . . 12 Flight 3 | . . . . . . . . . . . 1 . . . 2 Utility 54 | 2 1 . . 9 4 1 8 . 5 6 4 . 4 1 9 Device 29 | 1 . . . 6 3 1 6 . 2 2 1 . 2 . 5 Storage 5 | 1 1 . . . . . . . . . 1 . 1 . 1 Processor 9 | . . . . . 1 . 2 . 1 2 . . . . 3 Hackware 5 | . . . . . . . . . 1 2 1 . . 1 . Protection 6 | . . . . 3 . . . . 1 . 1 . 1 . . Artifact . | . . . . . . . . . . . . . . . . Weapon 53 | 2 . 5 1 8 4 2 7 . 1 4 1 . . . 18 Energy Gun 25 | 2 . 1 . 3 1 2 4 . . . . . . . 12 Energy Cannon 5 | . . . . 1 . . 1 . . . 1 . . . 2 Ballistic Gun 9 | . . 1 . 2 3 . 1 . . . . . . . 2 Ballistic Cannon 1 | . . . . 1 . . . . . . . . . . . Launcher 3 | . . 1 . . . . . . . 2 . . . . . Special Weapon 1 | . . . . . . . . . 1 . . . . . . Impact Weapon 2 | . . . . . . . . . . 1 . . . . 1 Slashing Weapon 3 | . . 1 . 1 . . 1 . . . . . . . . Piercing Weapon 1 | . . . . . . . . . . . . . . . 1 Special Melee Weapon 3 | . . 1 1 . . . . . . 1 . . . . . Unidentified Prototypes 19 | . . . . 3 . . 5 . 1 1 . . 6 1 2 Parts Lost 67 | . . 5 . 1 1 . 14 . . 11 2 . . 3 30 Power 7 | . . 1 . . . . 2 . . . . . . 1 3 Propulsion 19 | . . 1 . 1 . . 2 . . 4 2 . . . 9 Utility 22 | . . . . . . . 5 . . 4 . . . 1 12 Weapon 19 | . . 3 . . 1 . 5 . . 3 . . . 1 6 Highest Loss Streak 15 | . . 2 . 1 1 . 13 . . 5 2 . . 3 15 To Critical Strikes 1 | . . . . . . . 1 . . . . . . . . Average Backups 10 | 2 8 13 13 13 11 9 10 13 14 11 4 4 4 5 4 Power 1 | . 1 1 1 . 1 2 1 1 1 1 . . . 1 . Propulsion 2 | . 2 4 2 2 2 3 2 1 3 2 . . . 1 2 Utility 2 | . . 1 1 3 3 1 1 2 3 5 3 4 3 1 . Weapon 3 | 1 2 5 7 3 2 1 2 6 4 1 . . . . . Tool/Special . | . . . . . . . . . . . . . . . . Unused Backups 44 | . 1 1 6 10 8 1 2 . 2 9 1 . . 1 2 Power 5 | . . . . 1 2 . . . . 2 . . . . . Propulsion 12 | . 1 . 2 4 1 . 1 . . 3 . . . . . Utility 12 | . . . . . 5 . 1 . . 3 1 . . 1 1 Weapon 13 | . . 1 4 4 . 1 . . 2 . . . . . 1 Tool/Special 2 | . . . . 1 . . . . . 1 . . . . . Average Slot Usage (%) 84 | . 100 98 85 84 83 86 84 82 87 84 64 78 78 72 80 Engine 2 | . 14 13 . 1 . . . . . . . . . . . Reactor 2 | . . . . 4 6 6 4 . . 4 . . 2 1 3 Treads 9 | . 14 14 14 11 12 13 10 . . . . 5 2 . . Wheel 5 | . 14 13 13 7 2 . . . . . . . . . . Hover 5 | . . . . . . . . 23 23 23 8 10 10 10 21 Device 18 | . 14 14 14 24 22 26 25 17 17 17 10 10 12 11 11 Storage 6 | . 14 14 14 6 6 6 5 5 5 4 . 5 1 . . Processor 5 | . . . . . 5 6 11 17 17 16 12 10 7 5 10 Hackware 4 | . . . . . . . . . 4 6 15 21 21 22 15 Energy Gun 11 | . 28 11 14 13 9 24 20 5 . . . . . . 6 Ballistic Gun 3 | . . 5 . 5 15 1 . 5 . . . . . . . Slashing Weapon 1 | . . 5 2 2 . . . . 4 3 . . . . . Special Melee Weapon 2 | . . . 11 . . . . . . 3 . . . . . Peak Build Rating 136 | 7 8 15 13 72 77 77 103 93 115 122 79 79 103 103 136 Average Rating 63 | 5 7 10 9 65 71 76 83 92 106 107 69 79 83 77 108 On Entrance 58 | . 7 8 12 11 72 77 76 91 93 101 64 79 79 103 56 Avg Prop Armor Cover (%) 10 | 14 13 13 17 9 10 . 6 . . 3 4 13 13 8 6 Naked Turns . | . . . . . . . . . . . . . . . . Heaviest Build 70 | 15 30 33 26 64 62 62 70 48 48 48 37 21 31 31 56 Greatest Support 140 | 20 16 40 40 56 140 140 140 50 50 57 25 23 90 90 80 Greatest Overweight (x) 12 | . 1 2 2 3 3 . 12 . . 1 2 . . . 1 Average Overweight (x) . | . . 1 1 1 1 . . . . . . . . . . Largest Inventory Capacity 15 | 8 15 15 15 15 15 15 15 15 15 15 5 5 5 5 10 Average Capacity 12 | 6 10 15 15 15 15 15 15 15 15 13 5 5 5 5 5 Most Carried 15 | 6 9 15 15 15 15 15 15 15 15 15 5 5 5 5 5 Average Carried 11 | 2 8 13 14 14 14 14 13 14 14 12 4 5 4 4 4 Final Capacity 15 | 8 15 15 15 15 15 15 15 15 15 15 5 5 5 5 5 Final Carried 15 | 6 9 14 15 15 15 15 13 15 15 15 5 5 5 5 4 Scrap Suit Usage (%) 25 | . . . . 99 48 . . . . . . . . . . Parts Cannibalized 3 | . . . . 2 1 . . . . . . . . . . Class Distribution -------------------- 35% | Mutant 19% | Gunner 12% | Hacker-Mutant 8% | Scavenger-Gunner 7% | Scavenger-Tank 6% | Hacker-Gunner Dominant Class ---------------- Mutant | -10/Materials Mutant | -10/Subcaves Mutant | -8/Scraptown Gunner | -6/Factory Scavenger-Tank | -6/Waste Scavenger-Tank | -6/Factory Scavenger-Gunner | -5/Factory Scavenger-Mutant | -5/Waste Mutant | -5/Factory Scavenger-Gladiator | -4/Factory Hacker-Mutant | -4/Upper Caves Hacker-Mutant | -4/Upper Caves Hacker-Mutant | -4/Zhirov Hacker-Mutant | -3/Proximity Caves Hacker-Gunner | -3/Research Resources | -11 -10 -10 -8 -6 -6 -6 -5 -5 -5 -4 -4 -4 -4 -3 -3 ----------- Run | Yrd Mat Sub Scr Fac Was Fac Fac Was Fac Fac Upp Upp Zhi Pro Res Matter Collected 3426 | 270 18 222 . 864 621 89 188 . 218 140 228 . 117 51 400 Remotely . | . . . . . . . . . . . . . . . . Salvage Created 7503 | 72 146 314 . 1625 1737 146 1083 . 164 260 126 . 269 157 1404 Parts 293 | 8 7 19 . 66 44 3 42 . 11 22 5 . 1 4 61 Haulers Intercepted 3 | . 1 . . . . . 1 . . . . . . . 1 Recyclers Shooed 4 | . . . . 1 . 1 . . . . . . . . 2 Parts Field Recycled . | . . . . . . . . . . . . . . . . Retrieved Matter . | . . . . . . . . . . . . . . . . Parts Self-Destructed 25 | . . 9 . . . . . . . . 6 . . 10 . Prevented 2 | . . . . . . . . . . . 1 . 1 . . Parts Restored . | . . . . . . . . . . . . . . . . Kills | -11 -10 -10 -8 -6 -6 -6 -5 -5 -5 -4 -4 -4 -4 -3 -3 ------- Run | Yrd Mat Sub Scr Fac Was Fac Fac Was Fac Fac Upp Upp Zhi Pro Res Combat Hostiles Destroyed 87 | . 2 10 . 26 6 1 16 . . 4 4 . . 2 16 Melee 11 | . . 3 . . . . . . . 3 3 . . 1 1 Guns 60 | . 2 6 . 20 6 1 15 . . . . . . . 10 Cannons 11 | . . . . 5 . . . . . . . . . 1 5 AOE 2 | . . 1 . . . . . . . 1 . . . . . Classes Destroyed 16 | 2 2 2 . 5 1 . 4 . . . . . . . . Worker 4 | . . . . 1 . . 1 . . 1 . . . . 1 Tunneler 4 | 1 . . . . . . . . 2 1 . . . . . Hauler 3 | . 1 . . . . . 1 . . . . . . . 1 Recycler 8 | 1 . . . 2 . 1 . . 1 . . . . . 3 Watcher 3 | . . . . 2 . . . . . 1 . . . . . Swarmer 18 | . . 2 . 6 . . . . . . 3 . . 1 6 Saboteur 1 | . . . . . . . 1 . . . . . . . . Grunt 15 | . 2 . . 9 . 1 2 . . . . . . 1 . Brawler 1 | . . . . 1 . . . . . . . . . . . Sentry 2 | . . . . 2 . . . . . . . . . . . Specialist 4 | . . . . . . . 4 . . . . . . . . Hunter 9 | . . . . . . . 5 . . . . . . . 4 Programmer 21 | . . . . 8 . . 2 . . 4 1 . . . 6 Compactor 6 | . . . . . 6 . . . . . . . . . . Subdweller 8 | . . 8 . . . . . . . . . . . . . Packrat 1 | . . . . . . . . . . . . . . 1 . Wasp 1 | . . . . . . . 1 . . . . . . . . Thug 1 | . . . . . . . 1 . . . . . . . . Butcher 1 | . . . . . . . 1 . . . . . . . . Best Kill Streak 16 | 2 2 2 . 4 2 1 16 . 1 2 3 . . 1 4 Combat Bots Only 13 | . 2 2 . 4 2 1 13 . . 2 3 . . 1 3 Max Kills in Single Turn 2 | 2 1 2 . 1 1 1 2 . 1 1 1 . . 1 2 Gunslinging 1 | . . 1 . . . . 1 . . . . . . . . Exploded 1 | . . 1 . . . . . . . 1 . . . . . Melee 1 | . . 1 . . . . . . . 1 1 . . 1 1 Uniques/NPCs Destroyed . | . . . . . . . . . . . . . . . . Combat | -11 -10 -10 -8 -6 -6 -6 -5 -5 -5 -4 -4 -4 -4 -3 -3 -------- Run | Yrd Mat Sub Scr Fac Was Fac Fac Was Fac Fac Upp Upp Zhi Pro Res Hostile Shots Fired 1034 | . 4 93 . 163 1 . 284 . 5 91 42 . . 35 316 Missed 335 | . 3 25 . 62 . . 65 . 1 36 12 . . 10 121 Hits 699 | . 1 68 . 101 1 . 219 . 4 55 30 . . 25 195 Melee 2 | . . . . . 1 . . . . . . . . . 1 Projectile 697 | . 1 68 . 101 . . 219 . 4 55 30 . . 25 194 AOE 1 | . . . . 1 . . . . . . . . . . . Critical Strikes 40 | . . 1 . 7 1 . 13 . . 4 4 . . . 10 Part Disruptions 14 | . . . . 7 . . 7 . . . . . . . . Damage Taken 13248 | . 15 929 . 1697 55 . 3863 . 267 1041 567 . . 583 4231 Core 2547 | . . 171 . 201 . . 471 . . 187 61 . . 145 1311 Absorbed by Shields . | . . . . . . . . . . . . . . . . Reduced by Siege Mode 194 | . . . . . . . 194 . . . . . . . . Redirected to Shielding 169 | . . . . 9 . . . . . . . . . 115 45 Ignored by Resistances 49 | . . . . 9 . . 40 . . . . . . . . Regen/Repaired (Parts) 354 | . . . 198 133 10 . 13 . . . . . . . . Core Remaining (%) 63 | 100 . . 31 . . 76 . . 52 . . . . 60 . Volleys Fired 267 | 1 8 21 . 81 21 3 46 . 6 4 . . . 9 67 Largest 4 | 2 2 2 . 4 4 4 4 . 1 1 . . . 1 3 Hottest 295 | 90 90 80 . 253 132 295 295 . 81 46 . . . 105 282 Shots Fired 662 | 2 16 40 . 257 82 12 109 1 6 4 . 1 . 9 123 Gun 582 | 2 16 34 . 230 82 12 108 1 3 . . . . . 94 Cannon 67 | . . . . 27 . . 1 . . . . 1 . 9 29 Launcher 10 | . . 6 . . . . . . . 4 . . . . . Special 3 | . . . . . . . . . 3 . . . . . . Kinetic 206 | . . 18 . 88 81 1 4 1 2 . . . . . 11 Thermal 377 | 1 8 4 . 169 1 11 81 . 1 . . 1 . 9 91 Explosive 10 | . . 6 . . . . . . . 4 . . . . . Electromagnetic 66 | 1 8 12 . . . . 24 . . . . . . . 21 Robot Hit Streak 17 | 1 4 10 . 16 7 7 17 . 1 . . . . 2 9 Robot Miss Streak 9 | 1 2 6 . 9 3 2 5 . 3 . . . . 4 5 Penetration Max 1 | . . . . 1 . . . . . . . . . . 1 Secondary Targets 14 | . . 1 . 3 . . 8 . . . . . . . 2 Max Gunslinging Chain 1 | . . 1 . 1 . . 1 . . . . . . . 1 Shots Hit Robots 502 | 1 9 41 50 162 47 9 71 . 5 16 11 . 6 5 69 Core Hits 214 | 2 6 16 . 72 11 5 44 . 3 10 3 . 1 2 39 Critical Kills 12 | . . . . 6 6 . . . . . . . . . . Critical Parts Destroyed 24 | . . . . 11 1 . . . . 2 5 . 3 1 1 Critical Strikes 65 | . 1 3 . 23 18 . 8 . . 2 5 . 3 1 1 Burn 15 | . 1 1 . 6 . . 7 . . . . . . . . Destroy 37 | . . 1 . 17 18 . . . . . . . . . 1 Corrupt 1 | . . . . . . . 1 . . . . . . . . Smash 11 | . . . . . . . . . . 2 5 . 3 1 . Sever 1 | . . 1 . . . . . . . . . . . . . Melee Attacks 196 | . . 21 60 10 . . . . 10 37 22 . 7 6 23 Impact 57 | . . . . . . . . . . 6 22 . 7 6 16 Slashing 69 | . . 21 . 9 . . . . 10 29 . . . . . Piercing 8 | . . . . 1 . . . . . . . . . . 7 Sneak Attacks 61 | . . 1 50 2 . . . . 3 4 . . . 1 . Combat Hostiles 1 | . . 1 . . . . . . . . . . . . . Follow-up Attacks . | . . . . . . . . . . . . . . . . Damage Inflicted 13197 | 27 120 1220 . 3562 340 212 1785 . 525 1622 461 . 544 270 2509 Guns 7428 | 27 120 385 . 2904 340 212 1785 . 23 . . . . . 1632 Cannons 1486 | . . . . 527 . . . . . . . . . 92 867 Explosions 930 | . . 354 . . . . . . . 576 . . . . . Melee 3343 | . . 481 . 131 . . . . 502 1046 461 . 544 178 . Ramming 10 | . . . . . . . . . . . . . . . 10 Kinetic 1555 | . . 283 . 742 340 . 34 . . . . . . . 156 Thermal 6527 | 12 50 75 . 2689 . 212 1455 . 23 . . . . 92 1919 Explosive 867 | . . 291 . . . . . . . 576 . . . . . Electromagnetic 895 | 15 70 90 . . . . 296 . . . . . . . 424 Impact 1301 | . . . . . . . . . . 118 461 . 544 178 . Slashing 2041 | . . 481 . 130 . . . . 502 928 . . . . . Piercing 1 | . . . . 1 . . . . . . . . . . . Highest Corruption 20 | . 2 2 . 8 8 8 18 18 20 1 4 4 4 4 13 Average Corruption 5 | . 2 2 . 6 8 8 9 18 18 1 1 4 4 4 5 Corruption Purged . | . . . . . . . . . . . . . . . . Corruption Blocked . | . . . . . . . . . . . . . . . . Effects 184 | . 4 16 . 45 23 20 8 4 18 3 3 5 4 6 25 Message Errors 49 | . 2 5 . 12 10 3 2 . 4 1 1 3 1 1 4 Matter Fused 41 | . 1 8 . 13 2 4 2 1 . 1 1 1 1 2 4 Heat Flow Errors 27 | . . 2 . 7 4 1 . 1 3 1 1 . . 1 6 Energy Discharges 15 | . . . . 3 3 4 . 1 2 . . . 1 1 . Parts Rejected 1 | . . . . . . . . . . . . . . . 1 Data Loss (minor) 21 | . . . . 3 2 2 2 . 5 . . . . 1 6 Data Loss (major) 7 | . 1 . . 3 . 1 . . 1 . . . . . 1 Misfires 10 | . . . . 3 1 2 1 1 . . . 1 . . 1 Alerts 3 | . . . . . . 1 . . . . . . 1 . 1 Misdirections 4 | . . . . . . . 1 . 3 . . . . . . Weapon Failures 6 | . . 1 . 1 1 2 . . . . . . . . 1 Overload Shots . | . . . . . . . . . . . . . . . . Overflow Damage 891 | . . . . 8 . . . . . 342 223 . 215 50 53 Projectiles 61 | . . . . 8 . . . . . . . . . . 53 Explosions 1 | . . . . . . . . . . 1 . . . . . Melee 829 | . . . . . . . . . . 341 223 . 215 50 . Knockbacks 7 | . . . . 4 . . . . . 1 1 . . 1 . Impact 3 | . . . . . . . . . . 1 1 . . 1 . Kinetic 4 | . . . . 4 . . . . . . . . . . . Secondary . | . . . . . . . . . . . . . . . . Self-Inflicted Damage 4 | . . . . . . . . . . . . . . . 4 Shots . | . . . . . . . . . . . . . . . . Rammed 4 | . . . . . . . . . . . . . . . 4 Targets Rammed 4 | . . . . . . . . . . . . . . . 4 Kicked . | . . . . . . . . . . . . . . . . Crushed . | . . . . . . . . . . . . . . . . Highest Temperature 374 | 30 120 197 . 268 223 216 374 225 226 212 140 51 . 164 333 Average Temperature 80 | 17 58 105 . 51 103 85 106 120 99 100 78 33 . 54 97 Received Heat Transfer 1150 | . 9 252 . 291 . . 186 . 30 117 . . . 18 247 Effects 3 | . . . . . . . 1 . . . . . . . 2 Energy Bleed 1 | . . . . . . . 1 . . . . . . . . Interference 1 | . . . . . . . . . . . . . . . 1 Damage (minor) 1 | . . . . . . . . . . . . . . . 1 Siege Activations 1 | . . . . . . . 1 . . . . . . . . Total Turns 24 | . . . . . . . 24 . . . . . . . . Longest Duration 24 | . . . . . . . 24 . . . . . . . . Martial Activations . | . . . . . . . . . . . . . . . . Shielding Activations . | . . . . . . . . . . . . . . . . Robots Disrupted . | . . . . . . . . . . . . . . . . Combat Hostiles . | . . . . . . . . . . . . . . . . Robots Corrupted 3 | . . . . . . . . . . . 1 . 1 . 1 Combat Hostiles 2 | . . . . . . . . . . . 1 . 1 . . Parts Fried 10 | . . . . . . . 3 . . . 1 . . 1 5 Impact Corruptions 21 | . . . . . . . . . . 2 9 . 8 2 . Robots Melted 2 | . . . . 1 . . 1 . . . . . . . . Combat Hostiles 1 | . . . . 1 . . . . . . . . . . . Parts Melted 29 | . 1 . . 11 . 2 13 . . . . . . . 2 Heat Transferred 10436 | 37 222 161 . 4638 . 411 3339 . 37 . . . . 74 1517 Parts Sabotaged . | . . . . . . . . . . . . . . . . Parts Stolen . | . . . . . . . . . . . . . . . . Parts Stripped . | . . . . . . . . . . . . . . . . Power Chain Reactions 1 | . . 1 . . . . . . . . . . . . . Alert | -11 -10 -10 -8 -6 -6 -6 -5 -5 -5 -4 -4 -4 -4 -3 -3 ------- Run | Yrd Mat Sub Scr Fac Was Fac Fac Was Fac Fac Upp Upp Zhi Pro Res Maximum Alert Level 4 | . . . . 2 . 3 4 2 2 1 . . . . 2 Low Security (%) 60 | 100 100 . . 69 100 15 . . . 80 . . . . 82 Level 1 13 | . . . . 22 . 13 . . 62 20 . . . . 2 Level 2 11 | . . . . 8 . 6 23 100 37 . . . . . 15 Level 3 10 | . . . . . . 64 48 . . . . . . . . Level 4 3 | . . . . . . . 28 . . . . . . . . Level 5 . | . . . . . . . . . . . . . . . . High Security . | . . . . . . . . . . . . . . . . Max Security . | . . . . . . . . . . . . . . . . Peak Influence 1569 | 10 40 . . 442 148 1047 1569 537 530 241 . . . . 606 Initial 537 | . . . . . 148 . 508 537 347 226 . . . . 13 Average 269 | 1 5 . . 132 30 680 941 517 385 126 . . . . 140 Influence Increases 6474 | 10 57 115 . 862 3 1360 1739 . 327 367 180 . 5 70 1379 Destroy 0b10 Robot/C 2680 | . 40 40 . 520 . 520 780 . 80 80 80 . . 40 500 Destroy 0b10 Robot/NC 125 | 10 5 . . 25 . 5 20 . 15 15 . . 5 . 25 Destroy Leader 562 | . 12 . . 154 . 120 122 . 20 22 10 . . . 102 Allied During Kill 1250 | . . . . . . 645 576 . 3 . . . . . 26 Trap Triggered on 0b10 20 | . . . . . . . . . . 20 . . . . . Successful Hack 82 | . . . . 24 . . . . 26 14 . . . . 18 Disable Machine 270 | . . . . 15 . 15 75 . 90 30 . . . . 45 Destroy Structure 435 | . . . . 19 3 55 136 . 48 96 . . . . 78 Partial Spotted 90 | . . . . 15 . . . . 15 . . . . . 60 Lose Combat Pursuer 960 | . . 75 . 90 . . 30 . 30 90 90 . . 30 525 Influence Decreases 5838 | 10 57 115 . 437 428 321 1243 1038 360 747 230 34 5 50 763 Entered New Map 2240 | . . . . . 277 . 531 998 150 238 32 7 . . 7 Time Decay 2633 | 10 57 95 . 427 141 261 392 40 190 318 178 27 5 50 442 Lost Part 535 | . . 20 . 10 10 . 140 . . 41 20 . . . 294 Lost Ally 280 | . . . . . . 60 180 . 20 . . . . . 20 Purge Threat 150 | . . . . . . . . . . 150 . . . . . Squads Dispatched 65 | . . . . 18 . 12 11 . 6 5 . . . . 13 Investigation 18 | . . . . 5 . 5 2 . 3 1 . . . . 2 Extermination 18 | . . . . 6 . 1 2 . 1 3 . . . . 5 Reinforcement 17 | . . . . 7 . 3 4 . . 1 . . . . 2 Assault 4 | . . . . . . . 2 . 2 . . . . . . Garrison 8 | . . . . . . 3 1 . . . . . . . 4 Intercept . | . . . . . . . . . . . . . . . . Searches Triggered . | . . . . . . . . . . . . . . . . Construction Impeded 6 | . . . . 3 . . 3 . . . . . . . . Haulers Reinforced 2 | . . . . . . 1 . . . . . . . . 1 Active Scanning Responses . | . . . . . . . . . . . . . . . . Cargo Convoy Interrupts 1 | . . . . . . . 1 . . . . . . . . Stealth | -11 -10 -10 -8 -6 -6 -6 -5 -5 -5 -4 -4 -4 -4 -3 -3 --------- Run | Yrd Mat Sub Scr Fac Was Fac Fac Was Fac Fac Upp Upp Zhi Pro Res Distress Signals 9 | . . . . 1 . 1 2 . 1 2 . . . . 2 Communications Jammed 2 | . . . . . . . . . . . . . . . 2 Distress Signals 2 | . . . . . . . . . . . . . . . 2 Times Spotted 260 | . 4 13 . 44 4 19 53 6 7 24 14 . . 9 63 Peak Tracking Total 17 | . 2 4 . 4 3 3 17 6 3 8 5 . . 9 15 Tactical Retreats 34 | . . 2 . 5 . . 2 . 1 6 4 . . 1 13 Traps | -11 -10 -10 -8 -6 -6 -6 -5 -5 -5 -4 -4 -4 -4 -3 -3 ------- Run | Yrd Mat Sub Scr Fac Was Fac Fac Was Fac Fac Upp Upp Zhi Pro Res Traps Triggered 10 | . 1 . . 3 . 1 1 . 2 2 . . . . . Indirectly . | . . . . . . . . . . . . . . . . Trap Hack Attempts 25 | . . . . . . . . . . 25 . . . . . Triggered . | . . . . . . . . . . . . . . . . Disarmed . | . . . . . . . . . . . . . . . . Reprogrammed 3 | . . . . . . . . . . 3 . . . . . Reused 2 | . . . . . . . . . . 2 . . . . . Traps Extracted . | . . . . . . . . . . . . . . . . Installed . | . . . . . . . . . . . . . . . . Triggered 2 | . . . . . . . . . . 2 . . . . . Most Traps Carried 1 | . . . 1 1 1 . . . . . . . . . . Machines | -11 -10 -10 -8 -6 -6 -6 -5 -5 -5 -4 -4 -4 -4 -3 -3 ---------- Run | Yrd Mat Sub Scr Fac Was Fac Fac Was Fac Fac Upp Upp Zhi Pro Res Machines Disabled 18 | . . . . 1 . 1 5 . 6 2 . . . . 3 Max in Single Turn 2 | . . . . 1 . . 2 . 1 1 . . . . 1 Garrison Access 1 | . . . . . . . . . 1 . . . . . . Machines Repaired . | . . . . . . . . . . . . . . . . Machines Dismantled . | . . . . . . . . . . . . . . . . Machines Sabotaged . | . . . . . . . . . . . . . . . . Overloaded Fab Kills . | . . . . . . . . . . . . . . . . Hacking | -11 -10 -10 -8 -6 -6 -6 -5 -5 -5 -4 -4 -4 -4 -3 -3 --------- Run | Yrd Mat Sub Scr Fac Was Fac Fac Was Fac Fac Upp Upp Zhi Pro Res Machines Accessed 54 | . . . 6 14 . 5 2 . 5 5 1 . 9 . 7 Terminals 18 | . . . . 7 . 1 . . 2 5 . . . . 3 Fabricators . | . . . . . . . . . . . . . . . . Repair Stations 2 | . . . . 1 . . . . 1 . . . . . . Recycling Units 14 | . . . . 5 . 3 2 . 2 . . . . . 2 Scanalyzers 2 | . . . . 1 . . . . . . . . . . 1 Garrison Access 2 | . . . . . . 1 . . . . . . . . 1 Total Hacks 148 | . . . 23 27 . 7 3 . 8 13 1 . 48 . 18 Successful 108 | . . . 23 14 . 3 2 . 4 6 1 . 48 . 7 Failed 40 | . . . . 13 . 4 1 . 4 7 . . . . 11 Catastrophic 9 | . . . . 3 . 2 . . 1 1 . . . . 2 Database Lockouts . | . . . . . . . . . . . . . . . . Manual 50 | . . . . 17 . 4 3 . 5 9 . . . . 12 Terminals 36 | . . . . 10 . 1 . . 3 13 . . . . 9 Fabricators . | . . . . . . . . . . . . . . . . Repair Stations 4 | . . . . 2 . . . . 2 . . . . . . Recycling Units 27 | . . . . 13 . 3 3 . 3 . . . . . 5 Scanalyzers 4 | . . . . 2 . . . . . . . . . . 2 Garrison Access 5 | . . . . . . 3 . . . . . . . . 2 Terminal Hacks 79 | . . . 23 2 . . . . 1 3 1 . 48 . 1 Record 54 | . . . 16 2 . . . . . . . . 36 . . Part Schematic 4 | . . . . . . . . . . . . . 4 . . Robot Analysis 10 | . . . 6 . . . . . . . . . 4 . . Prototype ID Bank 4 | . . . . . . . . . . . . . 4 . . Open Door 1 | . . . . . . . . . . . 1 . . . . Level Access Points 1 | . . . . . . . . . 1 . . . . . . Emergency Access Points 1 | . . . . . . . . . . 1 . . . . . Unreport Threat 1 | . . . . . . . . . . 1 . . . . . Locate Traps 1 | . . . . . . . . . . 1 . . . . . Recall Extermination 1 | . . . . . . . . . . . . . . . 1 Proto ID Catalog 1 | . . . 1 . . . . . . . . . . . . Fabricator Hacks . | . . . . . . . . . . . . . . . . Repair Station Hacks 3 | . . . . 2 . . . . 1 . . . . . . Scan Component 2 | . . . . 1 . . . . 1 . . . . . . Repair 1 | . . . . 1 . . . . . . . . . . . Recycling Unit Hacks 1 | . . . . 1 . . . . . . . . . . . Retrieve Components 1 | . . . . 1 . . . . . . . . . . . Scanalyzer 3 | . . . . 1 . . . . . . . . . . 2 Retrieve Study 3 | . . . . 1 . . . . . . . . . . 2 Garrison Access Hacks . | . . . . . . . . . . . . . . . . Unauthorized Hacks 22 | . . . . 8 . 3 2 . 2 3 . . . . 4 Terminals 8 | . . . . 3 . . . . . 3 . . . . 2 Assimilate 1 | . . . . 1 . . . . . . . . . . . Botnet 5 | . . . . 1 . . . . . 2 . . . . 2 Operators 2 | . . . . 1 . . . . . 1 . . . . . Fabricators . | . . . . . . . . . . . . . . . . Repair Stations . | . . . . . . . . . . . . . . . . Recycling Units 14 | . . . . 5 . 3 2 . 2 . . . . . 2 Fedlink 11 | . . . . 5 . 3 2 . 1 . . . . . . Scrapoids 1 | . . . . . . . . . . . . . . . 1 Scraphulk 2 | . . . . . . . . . 1 . . . . . 1 Scanalyzers . | . . . . . . . . . . . . . . . . Garrison Access . | . . . . . . . . . . . . . . . . Data Cores Recovered . | . . . . . . . . . . . . . . . . Used . | . . . . . . . . . . . . . . . . Hacking Detections 24 | . . . . 11 . 2 . . 3 4 . . . . 4 Full Trace Events . | . . . . . . . . . . . . . . . . Feedback Events . | . . . . . . . . . . . . . . . . Feedback Blocked . | . . . . . . . . . . . . . . . . Robot Schematics Acquired . | . . . . . . . . . . . . . . . . Robots Built . | . . . . . . . . . . . . . . . . Authchips . | . . . . . . . . . . . . . . . . Time . | . . . . . . . . . . . . . . . . Total Robot Build Rating . | . . . . . . . . . . . . . . . . Part Schematics Acquired 4 | . . . . . . . . . . . . . 4 . . Parts Built . | . . . . . . . . . . . . . . . . Authchips . | . . . . . . . . . . . . . . . . Time . | . . . . . . . . . . . . . . . . Total Part Build Rating . | . . . . . . . . . . . . . . . . Part Studies Acquired 3 | . . . . 1 . . . . . . . . . . 2 Parts Repaired 1 | . . . . 1 . . . . . . . . . . . Time 80 | . . . . 80 . . . . . . . . . . . Parts Recycled . | . . . . . . . . . . . . . . . . Recycled Matter . | . . . . . . . . . . . . . . . . Retrieved Matter . | . . . . . . . . . . . . . . . . Retrieved Components 2 | . . . . 2 . . . . . . . . . . . Parts Scanalyzed . | . . . . . . . . . . . . . . . . Part Schematics Acquired . | . . . . . . . . . . . . . . . . Parts Damaged . | . . . . . . . . . . . . . . . . Bothacking | -11 -10 -10 -8 -6 -6 -6 -5 -5 -5 -4 -4 -4 -4 -3 -3 ------------ Run | Yrd Mat Sub Scr Fac Was Fac Fac Was Fac Fac Upp Upp Zhi Pro Res Used RIF Installer . | . . . . . . . . . . . . . . . . Robots Hacked 48 | . . . 46 . . . . . 1 1 . . . . . Non-combat 17 | . . . 15 . . . . . 1 1 . . . . . Combat 31 | . . . 31 . . . . . . . . . . . . Robot Hacks Applied 53 | . . . 50 . . . . . 1 2 . . . . . parse_system 50 | . . . 50 . . . . . . . . . . . . no_distress 1 | . . . . . . . . . . 1 . . . . . find_chute 1 | . . . . . . . . . . 1 . . . . . find_station 1 | . . . . . . . . . 1 . . . . . . Relay Couplers Released 1 | . . . . . . . . . 1 . . . . . . Machine Destruction 1 | . . . . . . . . . 1 . . . . . . Fabnet Peak Effective % . | . . . . . . . . . . . . . . . . Robots Rewired . | . . . . . . . . . . . . . . . . Allies Hacked 1 | . . . . . . . 1 . . . . . . . . Hacks Repelled . | . . . . . . . . . . . . . . . . Allies | -11 -10 -10 -8 -6 -6 -6 -5 -5 -5 -4 -4 -4 -4 -3 -3 -------- Run | Yrd Mat Sub Scr Fac Was Fac Fac Was Fac Fac Upp Upp Zhi Pro Res Total Allies 21 | . . . . . 19 . . . 1 . . . . . 1 Largest Group 19 | . . . . . 19 19 14 . 1 . . . . . 1 Highest-Rated Group 702 | . . . . . 702 702 541 . 123 . . . . . 139 Highest-Rated Ally 139 | . . . . . 50 50 50 . 123 . . . . . 139 Total Orders . | . . . . . . . . . . . . . . . . Ally Attacks 293 | . . . . . . 136 110 . 18 . . . . . 29 Total Damage 9727 | . . . . . . 3401 4026 . 601 . . . . . 1699 Kills 65 | . . . . . . 26 26 . 4 . . . . . 9 Allies Corrupted 1 | . . . . . . . 1 . . . . . . . . Allies Melted . | . . . . . . . . . . . . . . . . Intel | -11 -10 -10 -8 -6 -6 -6 -5 -5 -5 -4 -4 -4 -4 -3 -3 ------- Run | Yrd Mat Sub Scr Fac Was Fac Fac Was Fac Fac Upp Upp Zhi Pro Res Active Infowar (turns) 10369 | 35 383 1069 1610 2103 743 595 791 . 170 750 395 213 220 228 1064 Sensors 1421 | . . . . . . . . . . 720 395 213 93 . . Seismic 9268 | 35 383 1069 1610 2103 743 595 791 . 170 505 . . 139 228 897 Jamming 526 | . . . . . . . . . . . 35 . . . 491 Robot Analysis Total 10 | . . . 6 . . . . . . . . . 4 . . Derelict Logs Recovered 6 | . . . 3 . . . . . . . 1 2 . . . Drone Launches . | . . . . . . . . . . . . . . . . Drone Recoveries . | . . . . . . . . . . . . . . . . Exploration | -11 -10 -10 -8 -6 -6 -6 -5 -5 -5 -4 -4 -4 -4 -3 -3 ------------- Run | Yrd Mat Sub Scr Fac Was Fac Fac Was Fac Fac Upp Upp Zhi Pro Res Turns Passed 11671 | 72 383 1069 1610 2550 768 595 932 94 385 750 421 213 220 228 1381 Spaces Moved 10214 | 52 267 774 1326 1790 499 348 457 158 728 1232 526 263 196 217 1381 Core 77 | 1 . . . . . . 1 . . . . . . . 75 Treads 1448 | 1 . 31 64 322 230 348 452 . . . . . . . . Legs 118 | . . . . . . . . . . . . . 73 45 . Wheels 4059 | 50 267 743 1262 1468 269 . . . . . . . . . . Hover 4393 | . . . . . . . 4 158 728 1232 526 263 123 172 1187 Flight 119 | . . . . . . . . . . . . . . . 119 Fastest Speed 37 | 50 100 115 110 87 90 160 40 40 38 38 50 81 81 60 37 Average Speed 90 | 100 102 119 112 111 126 160 160 40 39 42 60 81 95 72 58 Slowest Speed 650 | 160 115 160 160 240 160 160 650 40 40 106 210 81 120 120 111 Overloaded Moves . | . . . . . . . . . . . . . . . . Propulsion Burnouts . | . . . . . . . . . . . . . . . . Robots Hopped 3 | . . . . . . . . . . . . . . . 3 Potential Cave-ins 5 | . . . . . . . . . . . . . . . 5 Cave-ins Triggered 1 | . . . . . . . . . . . . . . . 1 Teleports 1 | . . . . . . . . . . . . . . 1 . Exploration Rate (%) 45 | 3 52 51 86 48 88 12 15 75 22 22 62 51 62 46 26 Regions Visited 15 Branch Regions 6 Pre-discovered Areas 7 | . . 1 1 1 . . . . . . . 1 3 . . Known Exits Taken 2 | . . . . . . . . . 1 . . . . 1 . Unknown Exits Taken 9 | 1 1 1 1 . . 1 . . . 1 1 1 1 . . Scrap Searched 10 | . . 5 2 . . . . . . . 3 . . . . Spaces Dug 46 | . . 2 . 6 . . . . 5 11 . . 1 4 17 Terrain Destroyed 163 | . . 33 . 14 3 . . . 5 73 . 1 1 8 25 Melee 42 | . . 2 . 6 . . . . 5 11 . . 1 1 16 Projectile 25 | . . . . 8 . . . . . . . 1 . 7 9 AOE 93 | . . 31 . . . . . . . 62 . . . . . Terrain Rammed . | . . . . . . . . . . . . . . . . Walls Destroyed . | . . . . . . . . . . . . . . . . Machines Disabled . | . . . . . . . . . . . . . . . . Actions | -11 -10 -10 -8 -6 -6 -6 -5 -5 -5 -4 -4 -4 -4 -3 -3 --------- Run | Yrd Mat Sub Scr Fac Was Fac Fac Was Fac Fac Upp Upp Zhi Pro Res Total 11956 | 66 360 846 1418 2161 596 379 569 190 796 1405 612 262 223 272 1801 Wait 759 | . 79 8 16 193 26 17 11 23 28 53 36 . . 31 238 Move 10196 | 51 266 773 1325 1790 498 347 457 157 727 1231 525 262 195 216 1376 Hop 2 | . . . . . . . . . . . . . . . 2 Pick Up 111 | 7 4 11 7 26 10 2 9 6 5 7 5 . 3 . 9 Fast Attach 91 | 6 . . . 5 4 1 16 . 1 6 9 . 8 . 35 Attach 55 | 1 . 4 . 6 4 . 12 . 3 6 5 . 1 3 10 Detach 37 | . . . . 1 4 . 8 . 3 4 3 . 2 5 7 Swap 68 | . 1 5 2 22 9 4 2 . 8 7 . . 1 . 7 Drop 129 | . 2 3 8 27 20 5 8 4 5 9 7 . 6 2 23 Fire 267 | 1 8 21 . 81 21 3 46 . 6 4 . . . 9 67 Melee 196 | . . 21 60 10 . . . . 10 37 22 . 7 6 23 Ram 4 | . . . . . . . . . . . . . . . 4 Kick . | . . . . . . . . . . . . . . . . Crush . | . . . . . . . . . . . . . . . . Escape Stasis 16 | . . . . . . . . . . 16 . . . . . Rewire . | . . . . . . . . . . . . . . . . Trap 25 | . . . . . . . . . . 25 . . . . . Miscellaneous . | . . . . . . . . . . . . . . . . Route ------- -11/Scrapyard -10/Materials (discovered 3 exits: [*Mat x2] / [*Sub]) -10/Subcaves (discovered 4 exits: [*Mat x2] / [*Rec] / *Scr) -8/Scraptown (discovered 2 exits: *Fac x2) -6/Factory (discovered 2 exits: *Fac x2) -6/Waste -6/Factory -5/Factory -5/Waste -5/Factory (discovered 4 exits: *Fac x4) -4/Factory -4/Upper Caves -4/Upper Caves -4/Zhirov -3/Proximity Caves -3/Research (discovered 3 exits: Res x3) History --------- Turn | Location | Event 18 | -11/Scrapyard | Discovered new exit (range 16) 73 | -11/Scrapyard | Entered Materials 193 | -10/Materials | Discovered new exit (range 11) 299 | -10/Materials | Discovered new exit (range 15) 314 | -10/Materials | Build established: Mutant 439 | -10/Materials | Discovered new exit (range 8) 456 | -10/Materials | Entered Subcaves 457 | -10/Subcaves | Approached by a straggling Scientist 545 | -10/Subcaves | Learned location of Zion (-6) 545 | -10/Subcaves | Met a Zionite searching for "candidates" 555 | -10/Subcaves | A swath of the cavern ceiling suddenly collapsed 730 | -10/Subcaves | Discovered new exit (range 15) 758 | -10/Subcaves | Shifting Twisted Machinery released Piercing Trap 1059 | -10/Subcaves | Discovered new exit (range 11) 1223 | -10/Subcaves | Shifting Twisted Machinery released Battle Rifle 1227 | -10/Subcaves | Shifting Twisted Machinery released Sub. Machine Gun 1244 | -10/Subcaves | Discovered new exit (range 14) 1278 | -10/Subcaves | Disturbed a concealed Subdweller 1451 | -10/Subcaves | Core integrity fell below 50% 1524 | -10/Subcaves | Scientist uncovered a shortcut to Scraptown 1525 | -10/Subcaves | Entered Scraptown 1525 | -8/Scraptown | System corruption cleaned by C-Scrubber 1683 | -8/Scraptown | Visited TADAMA 1700 | -8/Scraptown | Visited Assassins FH 1900 | -8/Scraptown | Scanned Subdweller tech in exchange for log data 1902 | -8/Scraptown | Learned location of Testing (-2) 1904 | -8/Scraptown | Learned 8 Research zone layouts 1905 | -8/Scraptown | Learned Factory emergency access door positions 1958 | -8/Scraptown | Visited Red Mages 2001 | -8/Scraptown | Visited Fellowship of the Rings 2112 | -8/Scraptown | Visited Cyclists 2232 | -8/Scraptown | Discovered new exit (range 11) 2487 | -8/Scraptown | Visited CR-KLE's Repair Center 2494 | -8/Scraptown | CR-KLE repaired 5 parts 2582 | -8/Scraptown | Visited UFD Registry 2582 | -8/Scraptown | Registered with UFD as "Hardgunner" 2607 | -8/Scraptown | Entered Cyclist Reading Room 2667 | -8/Scraptown | Visited Derelict Rescue Squad 2686 | -8/Scraptown | Visited Abandonware Association 2702 | -8/Scraptown | Learned abandonware demo "HACKBUD.EXE" 2741 | -8/Scraptown | Visited Science Guys 2797 | -8/Scraptown | Visited Curators Association 2851 | -8/Scraptown | Visited Analyses Database 2882 | -8/Scraptown | Visited Scrap Suit Storage 2887 | -8/Scraptown | Found Scrap Suit 2907 | -8/Scraptown | Visited Scrapoid Research Area 2935 | -8/Scraptown | Visited DA-N13 Charitable Foundation 2965 | -8/Scraptown | Visited Modified Component R&D 3070 | -8/Scraptown | Met Optimus 3070 | -8/Scraptown | Accepted into 0bPrime 3129 | -8/Scraptown | Discovered new exit (range 5) 3135 | -8/Scraptown | Entered Factory 3135 | -6/Factory | Evolved 8 slots: Propulsion x2, Utility x4, Weapon x2 3180 | -6/Factory | Loaded intel: 8 recycling unit locations 3287 | -6/Factory | Spotted B-75 Beast 3688 | -6/Factory | Build established: Gunner 3774 | -6/Factory | Learned location of Protoforge (-2) 4509 | -6/Factory | Discovered new exit (range 13) 5307 | -6/Factory | Discovered new exit (range 13) 5624 | -6/Factory | Repaired Imp. Heavy Laser 5685 | -6/Factory | Sucked down chute 5685 | -6/Factory | Entered Waste 5758 | -6/Waste | Spotted C-40 Crusher 5759 | -6/Waste | Spotted C-40 Crusher 5771 | -6/Waste | Destroyed C-40 Crusher 5793 | -6/Waste | Spotted C-40 Crusher 5799 | -6/Waste | Destroyed C-40 Crusher 5820 | -6/Waste | Spotted C-40 Crusher 5824 | -6/Waste | Destroyed C-40 Crusher 5829 | -6/Waste | Spotted C-40 Crusher 5853 | -6/Waste | Destroyed C-40 Crusher 5861 | -6/Waste | Destroyed C-40 Crusher 5910 | -6/Waste | Spotted C-40 Crusher 5952 | -6/Waste | Crushed by Compactor (1 part destroyed) 5984 | -6/Waste | Destroyed C-40 Crusher 6100 | -6/Waste | Found Damper Plating 6329 | -6/Waste | Build established: Scavenger-Tank 6329 | -6/Waste | Discovered new exit (range 13) 6384 | -6/Waste | Warlord forces began an assault 6453 | -6/Waste | Entered Factory 6453 | -6/Factory | Accompanied by 19 allies 6530 | -6/Factory | Loaded intel: 8 recycling unit locations 7027 | -6/Factory | Discovered new exit (range 5) 7048 | -6/Factory | Entered another Factory area 7048 | -5/Factory | Accompanied by 14 allies 7048 | -5/Factory | Evolved 2 slots: Utility x2 7117 | -5/Factory | Lost 3 allies 7123 | -5/Factory | Build established: Scavenger-Gunner 7158 | -5/Factory | Loaded intel: 8 recycling unit locations 7757 | -5/Factory | Garrison activated, responded to threat 7785 | -5/Factory | Cargo convoy interrupted 7819 | -5/Factory | P-70 Sage assimilated allied BT-R4L(m) 7829 | -5/Factory | Lost 6 allies 7843 | -5/Factory | System corruption reached 10% 7888 | -5/Factory | Destroyed 13 combat bots 7918 | -5/Factory | Lost 13 parts (2p2n5u4w) 7925 | -5/Factory | Found Prototype Device 7925 | -5/Factory | Identified Exp. Focal Shield 7948 | -5/Factory | First assault squad dispatched 7957 | -5/Factory | Found Prototype Hackware 7980 | -5/Factory | Sucked down chute 7980 | -5/Factory | Entered Waste 8014 | -5/Waste | Spotted C-40 Crusher 8014 | -5/Waste | Spotted C-40 Crusher 8015 | -5/Waste | Spotted C-40 Crusher 8045 | -5/Waste | Spotted C-40 Crusher 8049 | -5/Waste | Spotted C-40 Crusher 8059 | -5/Waste | Spotted C-40 Crusher 8065 | -5/Waste | Discovered new exit (range 16) 8074 | -5/Waste | Identified exit to Factory 8074 | -5/Waste | Entered Factory 8082 | -5/Factory | Identified Exp. Hacking Suite 8157 | -5/Factory | Found Prototype Launcher 8244 | -5/Factory | Identified exit to Factory 8293 | -5/Factory | Scraphulk reinforcements arrived? 8314 | -5/Factory | Loaded intel: 7 recycling unit locations 8367 | -5/Factory | Build established: Mutant 8459 | -5/Factory | Entered another Factory area 8459 | -4/Factory | Evolved 2 slots: Propulsion x1, Utility x1 8571 | -4/Factory | Identified Tesla Bomb Launcher 8641 | -4/Factory | Noticed UFD Elites at a Recycling Unit 8712 | -4/Factory | Discovered new exit (range 10) 9130 | -4/Factory | Lost 5 parts (3n1u1w) 9156 | -4/Factory | Spotted B-86 Titan 9209 | -4/Factory | Entered Upper Caves 9210 | -4/Upper Caves | Encountered a Warlord checkpoint 9221 | -4/Upper Caves | Learned location of 1 exit from Proximity Caves 9333 | -4/Upper Caves | Build established: Hacker-Mutant 9396 | -4/Upper Caves | Ambushed by wild Derelicts 9618 | -4/Upper Caves | Discovered new exit (range 16) 9630 | -4/Upper Caves | Entered another Upper Caves area 9662 | -4/Upper Caves | Learned location of Armory (-4) 9833 | -4/Upper Caves | Discovered new exit (range 13) 9843 | -4/Upper Caves | Entered Zhirov 9843 | -4/Zhirov | Discovered new exit (range 3) 9860 | -4/Zhirov | Met Zhirov 9876 | -4/Zhirov | Learned location of Quarantine (-3) 9876 | -4/Zhirov | Learned location of Command (-1) 9893 | -4/Zhirov | Zhirov requested help retrieving the SGEMP Prototype 9913 | -4/Zhirov | Found Alien Artifact 9913 | -4/Zhirov | Identified Integrated Reactor 9913 | -4/Zhirov | Installed Integrated Reactor, increased core energy generation (+10) 9927 | -4/Zhirov | Found Alien Artifact 10063 | -4/Zhirov | Entered Proximity Caves 10064 | -3/Proximity Caves | Identified exit to Research 10128 | -3/Proximity Caves | Attracted the attention of an 0b10 checkpoint 10132 | -3/Proximity Caves | Identified Transdimensional Reconstructor 10132 | -3/Proximity Caves | Warped through subspace 10243 | -3/Proximity Caves | Lost 3 parts (1p1u1w) 10291 | -3/Proximity Caves | Entered Research 10291 | -3/Research | Evolved 2 slots: Propulsion x1, Utility x1 10292 | -3/Research | Identified exit to Research 10637 | -3/Research | Lost 3 parts (2u1w) 10772 | -3/Research | Lost 3 parts (2p1w) 10813 | -3/Research | Build established: Hacker-Gunner 11097 | -3/Research | Garrison activated, responded to threat 11243 | -3/Research | Garrison activated, responded to threat 11278 | -3/Research | Crushed by falling debris 11392 | -3/Research | System corruption reached 10% 11393 | -3/Research | Core integrity fell below 50% 11428 | -3/Research | Core integrity fell below 20% 11432 | -3/Research | Scraphulk reinforcements arrived? 11441 | -3/Research | Lost 15 parts (1p5n6u3w) 11672 | -3/Research | Destroyed by S-43 Plague with Heavy Machine Gun Last Messages --------------- to Research Zone 8R. 11659_ Connecting with Recycling Unit... >>Force(Scrapoids) UFD!MEMBER UFD!ALLOCATE<66-3=63> UFD!ETA<15> UFD!SANITIZING UFD!... 11659_ ALERT: Suspicious activity at Recycling Unit R003. Dispatching Investigation squad. 11661_ System corrupted: Heat flow error (+283). 11661_ Xenon Bombardment Thruster destroyed. 11662_ Overheating: System interference. 11662_ Imp. Melee Analysis Suite temporarily disabled. 11663_ Dropped Lgt. Antimatter Reactor. 11664_ Imp. Gyrokinetic Inverter+ destroyed. 11664_ Xenon Bombardment Thruster destroyed. 11668_ Slammed into S-43 Plague. 11668_ Destabilizing: System corrupted (+1). 11670_ Adv. Heat Sink destroyed. Map ----- +----------------------------------------------------+ | ?????????????????????????????????????????????????? | | ?????????????????????????????????????????????????? | | ?????????????????????????????????????????????????? | | ?????????????????????????????????????????????????? | | ?????????????????????????????????????????????????? | | ?????????????????????????????????????????????????? | | ?????????????????????????????????????????????????? | | ?????????????????????????????????????????????????? | | ?????????????????????????????????????????????????? | | ??????????????????????????????????????????????#### | | ??????????????????????????????????????? | | ??????????????????????????????????????????????# ## | | ??????????????????????????????????????#########+## | | ?????????????????????#######??????????# ## | | ?????????????????????# ! #??????????# ## ! | | ?????????????????????# #??????????# ##= | | ?????????????????????# ############ ## ! | | ?????????????????????# ## ## ## / | | ?????????????????????# ## ## ## | | ?????????????????????# ## "" ## #?! | | ?????????????????????# ## "" ## #?##+ | | ?????????????????????# ## Y" ## ### | | ?????????????????????# ## "" ##! + | | ?????????????????????# ## "" ## # | | ?????????????????????# ## ## # | | ?????????????????????# @ ##* ## # | | ?????????? ####s###"####+########+### | | ?????????? k | | ?????????? ### | | ?????????? #?? | | ??????????? #?? | | ??????????? #?? | | ????????????############# ######################?? | | ????????????????????????# #??????????????????????? | | ????????????????????????# #??????????????????????? | | ???????????????????????? ??????????????????????? | | ???????????????????????? " ??????????????????????? | | ???????????????????????# ??????????????????????? | | ???????????????????????## #??????????????????????? | | ????????????????????????# ???????????????????????? | | ????????????????????????? ???????????????????????? | | ?????????????????????????????????????????????????? | | ?????????????????????????????????????????????????? | | ?????????????????????????????????????????????????? | | ?????????????????????????????????????????????????? | | ?????????????????????????????????????????????????? | | ?????????????????????????????????????????????????? | | ?????????????????????????????????????????????????? | | ?????????????????????????????????????????????????? | | ?????????????????????????????????????????????????? | +----------------------------------------------------+ Best States ------------- Heat Dissipation 118 Energy Generation 33 Energy Capacity 350 Matter Stores 300 Matter Capacity 300 Sight Range 16 Robot Scan Range 16 Terrain Scan Density 10 Jamming Range 14 Armor Coverage 825 Resistance: KI 30 Resistance: TH 25 Power Shielding 66 Propulsion Shielding 90 Weapon Cycling 15 Melee Speed Boost 30 Phase Shifting 10 Evasion (%) 65 Melee Accuracy 6 Target Analysis 12 Core Analysis 6 Recoil Reduction 4 Particle Charging 30 Offensive Hacking 40 Defensive Hacking 26 Item Schematics ----------------- Assault Drone Bay | -4/Zhirov | Free Exp. Heat Sink | -4/Zhirov | Free Exp. Optical Array | -4/Zhirov | Free Imp. Arc Thrower | -4/Zhirov | Free Robot Schematics ------------------ None Fabricated ------------ Nothing Repaired ---------- Imp. Heavy Laser | 6% | -6/Factory Studied --------- Phase Cannon | -6/Factory | Hacked Imp. Gyrokinetic Inverter | -3/Research | Hacked Antigrav Array | -3/Research | Hacked Alien Tech Used ----------------- Integrated Reactor Transdimensional Reconstructor Achievements -------------- Hack The Planet Hulk Smash The Science Guy Challenges ------------ None Game ------ Seed LargeProcessingRifle Manual? 0 Play Time 03:57:35 Cumulative 69.9 hours Start 2026.01.11 @ 11:17:07 End 2026.01.11 @ 16:07:50 Sessions 5 Manual Loads 0 Difficulty Rogue Special Mode None Game No. 27 Rogue 27 Adventurer 0 Explorer 0 Win Type - Total 1 Types 1/0/0/0/0/0/0/0/0/0 Lore% 42 Gallery% 46 Achievement% 37 Wizard Run 0 Options --------- Layout 0 ASCII 0 Keyboard 1 Movement Arrows Keybinds 0 Fullscreen 1 Font 18/SmallcapsGlow Map View 76x50 Zoom Use 0% Tactical HUD 1 Map Filters NONE Filters NONE Steam 1 RUN: 8ab60033-9fd4-482e-94e9-f553f0d68d07